Cogmind - Beta 16.1 @@@ ROGUE MODE // 2026.04.13 @ 22:14:38 Player: Krysmphoenix Result: Destroyed by XH-MHL(R) with Subdweller Laser Performance ------------- Evolutions (0) 0 Regions Visited (2) 400 Robots Destroyed (14) 70 Value Destroyed (298) 298 Prototype IDs (0) 0 Alien Tech Used (0) 0 Bonus (0) 0 TOTAL SCORE: 768 Bonus ------- None Cogmind --------- Core Integrity 0/250 Matter 265/300 Energy 4/100 System Corruption 2% Temperature Cool (6) Movement Rolling (80) Location -10/Subcaves Parts ------- > --- POWER (1) -------- (None) > --- PROPULSION (2) --- Wheel > --- UTILITY (2) ------ Heat Sink ECM Suite > --- WEAPON (2) ------- Beam Cannon > --- INVENTORY (5) ---- Makeshift Hacking Suite Subdweller Machine Gun Datajack Mining Laser Peak State ------------ > --- POWER ------------ Ion Engine > --- PROPULSION ------- Wheel Wheel > --- UTILITY ---------- Heat Sink ECM Suite > --- WEAPON ----------- Medium Laser Medium Laser > --- INVENTORY -------- Small Laser Beam Cannon Datajack Mining Laser [Rating: 7] Favorites ----------- Power Ion Engine Engine Ion Engine Propulsion Wheel Wheel Wheel Utility Heat Sink Device Heat Sink Weapon Medium Laser Energy Gun Medium Laser Energy Cannon Beam Cannon Special Weapon Mining Laser Special Melee Weapon Datajack Build | -11 -10 -10 ------- Run | Yrd Mat Sub Slots Evolved . | . . . Power . | . . . Propulsion . | . . . Utility . | . . . Weapon . | . . . Parts Attached 16 | 7 7 2 Power 3 | 2 1 . Engine 3 | 2 1 . Core . | . . . Reactor . | . . . Propulsion 4 | 3 1 . Treads . | . . . Leg . | . . . Wheel 4 | 3 1 . Hover . | . . . Flight . | . . . Utility 2 | . 2 . Device 2 | . 2 . Storage . | . . . Processor . | . . . Hackware . | . . . Protection . | . . . Artifact . | . . . Weapon 7 | 2 3 2 Energy Gun 3 | 2 . 1 Energy Cannon 2 | . 2 . Ballistic Gun . | . . . Ballistic Cannon . | . . . Launcher . | . . . Special Weapon 1 | . . 1 Impact Weapon . | . . . Slashing Weapon . | . . . Piercing Weapon . | . . . Special Melee Weapon 1 | . 1 . Unidentified Prototypes . | . . . Parts Lost 6 | . 1 5 Power 1 | . . 1 Propulsion 2 | . 1 1 Utility . | . . . Weapon 3 | . . 3 Highest Loss Streak 3 | . 1 3 To Critical Strikes 1 | . . 1 Average Backups 3 | 1 4 4 Power . | . . . Propulsion . | . . . Utility . | . . . Weapon 2 | 1 2 2 Tool/Special . | . . . Unused Backups 4 | . 2 2 Power 1 | . 1 . Propulsion . | . . . Utility 1 | . . 1 Weapon 2 | . 1 1 Tool/Special . | . . . Average Slot Usage (%) 87 | . 83 92 Engine 13 | . 14 12 Wheel 24 | . 26 22 Device 20 | . 14 28 Energy Gun 24 | . 25 23 Energy Cannon 3 | . 2 3 Peak Build Rating 7 | 5 7 7 Average Rating 5 | 4 5 6 On Entrance 4 | . 5 7 Avg Prop Armor Cover (%) . | . . . Naked Turns . | . . . Heaviest Build 12 | 9 12 12 Greatest Support 26 | 26 20 20 Greatest Overweight (x) 1 | . . 1 Average Overweight (x) . | . . . Largest Inventory Capacity 5 | 5 5 5 Average Capacity 5 | 5 5 5 Most Carried 5 | 5 5 5 Average Carried 3 | 1 4 4 Final Capacity 5 | 5 5 5 Final Carried 4 | 2 4 4 Class Distribution -------------------- 100% | Mutant Dominant Class ---------------- Mutant | -10/Materials Mutant | -10/Subcaves Resources | -11 -10 -10 ----------- Run | Yrd Mat Sub Matter Collected 375 | 185 170 20 Remotely . | . . . Salvage Created 399 | 92 238 69 Parts 23 | 8 8 7 Haulers Intercepted . | . . . Recyclers Shooed . | . . . Parts Field Recycled . | . . . Retrieved Matter . | . . . Parts Self-Destructed 7 | . . 7 Prevented . | . . . Parts Restored . | . . . Kills | -11 -10 -10 ------- Run | Yrd Mat Sub Combat Hostiles Destroyed 10 | . 6 4 Guns 9 | . 5 4 Cannons 1 | . 1 . Classes Destroyed 3 | 1 1 1 Tunneler 4 | 4 . . Swarmer 4 | . . 4 Grunt 6 | . 6 . Best Kill Streak 4 | 3 3 4 Combat Bots Only 4 | . 3 4 Max Kills in Single Turn 2 | 1 1 2 Gunslinging 1 | . . 1 Exploded . | . . . Melee . | . . . Uniques/NPCs Destroyed . | . . . Combat | -11 -10 -10 -------- Run | Yrd Mat Sub Hostile Shots Fired 138 | . 25 113 Missed 52 | . 6 46 Hits 86 | . 19 67 Projectile 86 | . 19 67 Critical Strikes 1 | . . 1 Damage Taken 757 | . 250 507 Core 255 | . 86 169 Absorbed by Shields . | . . . Regen/Repaired (Parts) 36 | . 36 . Core Remaining (%) 100 | 100 . . Volleys Fired 48 | 10 19 19 Largest 2 | 2 2 2 Hottest 140 | 100 120 140 Shots Fired 93 | 20 38 35 Gun 79 | 20 32 27 Cannon 13 | . 6 7 Launcher . | . . . Special 1 | . . 1 Kinetic . | . . . Thermal 93 | 20 38 35 Explosive . | . . . Electromagnetic . | . . . Robot Hit Streak 9 | 9 9 4 Robot Miss Streak 4 | 2 4 4 Penetration Max . | . . . Secondary Targets 2 | . 1 1 Max Gunslinging Chain 1 | . 1 1 Shots Hit Robots 58 | 12 29 17 Core Hits 22 | 4 13 5 Critical Kills . | . . . Critical Parts Destroyed . | . . . Critical Strikes 7 | 2 4 1 Burn 7 | 2 4 1 Melee Attacks . | . . . Impact . | . . . Slashing . | . . . Piercing . | . . . Sneak Attacks . | . . . Combat Hostiles . | . . . Follow-up Attacks . | . . . Damage Inflicted 748 | 151 376 221 Guns 643 | 151 323 169 Cannons 105 | . 53 52 Explosions . | . . . Melee . | . . . Ramming . | . . . Kinetic . | . . . Thermal 748 | 151 376 221 Explosive . | . . . Electromagnetic . | . . . Impact . | . . . Slashing . | . . . Piercing . | . . . Highest Corruption 2 | . 2 2 Average Corruption 2 | . 2 2 Corruption Purged . | . . . Corruption Blocked . | . . . Effects 8 | . 3 5 Message Errors 5 | . 2 3 Heat Flow Errors 1 | . 1 . Energy Discharges 1 | . . 1 Data Loss (minor) 1 | . . 1 Overload Shots . | . . . Overflow Damage . | . . . Projectiles . | . . . Explosions . | . . . Melee . | . . . Knockbacks . | . . . Impact . | . . . Kinetic . | . . . Secondary . | . . . Self-Inflicted Damage . | . . . Shots . | . . . Rammed . | . . . Targets Rammed . | . . . Kicked . | . . . Crushed . | . . . Highest Temperature 311 | 311 210 13 Average Temperature 111 | 152 87 13 Received Heat Transfer 357 | . 141 216 Effects 1 | 1 . . Energy Bleed 1 | 1 . . Siege Activations . | . . . Martial Activations . | . . . Shielding Activations . | . . . Robots Disrupted . | . . . Combat Hostiles . | . . . Robots Corrupted . | . . . Combat Hostiles . | . . . Parts Fried . | . . . Impact Corruptions . | . . . Robots Melted . | . . . Combat Hostiles . | . . . Parts Melted 12 | 4 8 . Heat Transferred 2569 | 592 1369 608 Parts Sabotaged . | . . . Parts Stolen . | . . . Parts Stripped . | . . . Power Chain Reactions . | . . . Alert | -11 -10 -10 ------- Run | Yrd Mat Sub Maximum Alert Level . | . . . Low Security (%) 100 | 100 100 . Level 1 . | . . . Level 2 . | . . . Level 3 . | . . . Level 4 . | . . . Level 5 . | . . . High Security . | . . . Max Security . | . . . Peak Influence 76 | 10 76 . Initial . | . . . Average 21 | 1 26 . Influence Increases 298 | 20 198 80 Destroy 0b10 Robot/C 200 | . 120 80 Destroy 0b10 Robot/NC 20 | 20 . . Destroy Leader 30 | . 30 . Successful Hack 33 | . 33 . Lose Combat Pursuer 15 | . 15 . Influence Decreases 298 | 20 198 80 Time Decay 268 | 20 188 60 Lost Part 30 | . 10 20 Squads Dispatched 3 | . 3 . Investigation 1 | . 1 . Extermination . | . . . Reinforcement 2 | . 2 . Assault . | . . . Garrison . | . . . Intercept . | . . . Searches Triggered . | . . . Construction Impeded . | . . . Haulers Reinforced . | . . . Active Scanning Responses . | . . . Cargo Convoy Interrupts . | . . . Stealth | -11 -10 -10 --------- Run | Yrd Mat Sub Distress Signals 1 | . 1 . Communications Jammed . | . . . Distress Signals . | . . . Times Spotted 60 | . 14 46 Peak Tracking Total 6 | . 4 6 Tactical Retreats 4 | . 1 3 ECM-based Alert Blocks 54 | . . 54 Traps | -11 -10 -10 ------- Run | Yrd Mat Sub Traps Triggered 2 | . 2 . Indirectly . | . . . Trap Hack Attempts . | . . . Triggered . | . . . Disarmed . | . . . Reprogrammed . | . . . Reused . | . . . Traps Extracted . | . . . Installed . | . . . Triggered . | . . . Machines | -11 -10 -10 ---------- Run | Yrd Mat Sub Machines Disabled 1 | . . 1 Max in Single Turn 1 | . . 1 Machines Repaired . | . . . Machines Dismantled . | . . . Machines Sabotaged . | . . . Overloaded Fab Kills . | . . . Hacking | -11 -10 -10 --------- Run | Yrd Mat Sub Machines Accessed 8 | . 8 . Terminals 5 | . 5 . Fabricators . | . . . Repair Stations 1 | . 1 . Recycling Units 2 | . 2 . Scanalyzers . | . . . Garrison Access . | . . . Total Hacks 24 | . 24 . Successful 13 | . 13 . Failed 11 | . 11 . Catastrophic . | . . . Database Lockouts . | . . . Manual 15 | . 15 . Terminals 14 | . 14 . Fabricators . | . . . Repair Stations 7 | . 7 . Recycling Units 3 | . 3 . Scanalyzers . | . . . Garrison Access . | . . . Terminal Hacks 2 | . 2 . Branch Access Points 1 | . 1 . Zone Layout 1 | . 1 . Fabricator Hacks . | . . . Repair Station Hacks 4 | . 4 . Scan Component 2 | . 2 . Repair 2 | . 2 . Recycling Unit Hacks . | . . . Scanalyzer . | . . . Garrison Access Hacks . | . . . Unauthorized Hacks 7 | . 7 . Terminals 5 | . 5 . Botnet 5 | . 5 . Fabricators . | . . . Repair Stations . | . . . Recycling Units 2 | . 2 . Reject 2 | . 2 . Scanalyzers . | . . . Garrison Access . | . . . Data Cores Recovered . | . . . Used . | . . . Hacking Detections 5 | . 5 . Full Trace Events . | . . . Feedback Events . | . . . Feedback Blocked . | . . . Robot Schematics Acquired . | . . . Robots Built . | . . . Authchips . | . . . Time . | . . . Total Robot Build Rating . | . . . Part Schematics Acquired . | . . . Parts Built . | . . . Authchips . | . . . Time . | . . . Total Part Build Rating . | . . . Part Studies Acquired . | . . . Parts Repaired 2 | . 2 . Time 52 | . 52 . Parts Recycled . | . . . Recycled Matter . | . . . Retrieved Matter . | . . . Retrieved Components . | . . . Parts Scanalyzed . | . . . Part Schematics Acquired . | . . . Parts Damaged . | . . . Bothacking | -11 -10 -10 ------------ Run | Yrd Mat Sub Used RIF Installer . | . . . Robots Hacked . | . . . Non-combat . | . . . Combat . | . . . Robot Hacks Applied . | . . . Relay Couplers Released . | . . . Fabnet Peak Effective % . | . . . Robots Rewired . | . . . Allies Hacked . | . . . Hacks Repelled . | . . . Allies | -11 -10 -10 -------- Run | Yrd Mat Sub Total Allies . | . . . Largest Group . | . . . Highest-Rated Group . | . . . Highest-Rated Ally . | . . . Total Orders . | . . . Ally Attacks . | . . . Total Damage . | . . . Kills . | . . . Allies Corrupted . | . . . Allies Melted . | . . . Intel | -11 -10 -10 ------- Run | Yrd Mat Sub Active Infowar (turns) 446 | . 108 338 ECM 446 | . 108 338 Robot Analysis Total . | . . . Derelict Logs Recovered . | . . . Drone Launches . | . . . Drone Recoveries . | . . . Exploration | -11 -10 -10 ------------- Run | Yrd Mat Sub Turns Passed 933 | 110 484 339 Spaces Moved 675 | 70 380 225 Core 13 | 13 . . Treads . | . . . Legs . | . . . Wheels 662 | 57 380 225 Hover . | . . . Flight . | . . . Fastest Speed 50 | 50 80 80 Average Speed 80 | 77 80 81 Slowest Speed 95 | 90 80 95 Overloaded Moves . | . . . Propulsion Burnouts . | . . . Robots Hopped . | . . . Potential Cave-ins . | . . . Cave-ins Triggered . | . . . Exploration Rate (%) 25 | 3 61 13 Regions Visited 2 Branch Regions 1 Pre-discovered Areas . | . . . Known Exits Taken . | . . . Unknown Exits Taken 2 | 1 1 . Scrap Searched . | . . . Spaces Dug . | . . . Terrain Destroyed . | . . . Melee . | . . . Projectile . | . . . AOE . | . . . Terrain Rammed . | . . . Walls Destroyed . | . . . Machines Disabled . | . . . Actions | -11 -10 -10 --------- Run | Yrd Mat Sub Total 968 | 105 519 344 Wait 195 | 8 92 95 Move 673 | 69 379 225 Hop . | . . . Pick Up 22 | 9 11 2 Fast Attach . | . . . Attach 12 | 5 5 2 Detach . | . . . Swap 12 | 2 9 1 Drop 6 | 2 4 . Fire 48 | 10 19 19 Melee . | . . . Ram . | . . . Kick . | . . . Crush . | . . . Escape Stasis . | . . . Rewire . | . . . Trap . | . . . Miscellaneous . | . . . Route ------- -11/Scrapyard -10/Materials (discovered 4 exits: [*Mat x2] / Min / [*Sub]) -10/Subcaves (discovered 1 exit: [*Rec]) History --------- Turn | Location | Event 12 | -11/Scrapyard | Discovered new exit (range 15) 111 | -11/Scrapyard | Entered Materials 217 | -10/Materials | Discovered new exit (range 11) 231 | -10/Materials | Identified exit to Mines 322 | -10/Materials | Build established: Mutant 340 | -10/Materials | Repaired Wheel 370 | -10/Materials | Repaired Wheel 473 | -10/Materials | Discovered new exit (range 5) 578 | -10/Materials | Discovered new exit (range 7) 595 | -10/Materials | Entered Subcaves 660 | -10/Subcaves | Shifting Twisted Machinery released Mak. Hacking Suite 685 | -10/Subcaves | Shifting Twisted Machinery released Sub. Machine Gun 796 | -10/Subcaves | Discovered new exit (range 12) 804 | -10/Subcaves | Core integrity fell below 50% 850 | -10/Subcaves | Lost 3 parts (1n2w) 908 | -10/Subcaves | Core integrity fell below 20% 934 | -10/Subcaves | Destroyed by XH-MHL(R) with Subdweller Laser Last Messages --------------- 00819_ Med. Laser destroyed. 00820_ Lgt. Assault Rifle fries itself beyond repair. 00822_ Flight Unit fries itself beyond repair. 00824_ Lgt. Ion Engine fries itself beyond repair. 00824_ S-10 Pest destroyed. 00827_ Flight Unit fries itself beyond repair. 00830_ Subatomizers dissect the Flight Unit. 00832_ System corrupted: Energy discharge (-56). 00835_ Lgt. Assault Rifle fries itself beyond repair. 00887_ TJI2%XJHROS& 00894_ Acquired Sub. Machine Gun. 00899_ Acquired 20 matter. 00905_ Machine disabled. 00909_ Ion Engine destroyed. 00917_ Destroyed Autobeam. 00932_ Sml. Laser destroyed. Map ----- +----------------------------------------------------+ | ?????????????## # ### #??????????? | | ???????????### ## #?# ##?????????? | | ??????????## ### #?# ##????????? | | ??????????# # ##?# ### ##???????? | | ??????????# # #?## #???????? | | ??????????# "" ##?# #???????? | | ??????????# ## ####"#####?## #???????? | | ??????????### #?######?## #???????? | | ???????????# ##?## ### #???????? | | ???????????# #?#" ## #???????? | | ???????????## ###"" ### #???????? | | ????????????# ### " #?## #??????? | | ????????????## ## "" ### ##??????? | | ??????????####"" " #######???????? | | ??????????# """ """ "" ### #?????????????? | | ??????????## """" """""""#?## #?????????????? | | ???????????# """ """"""#########?????????????? | | ???????????## " ## "" ""##??????????????????? | | ????????????# ### " " #??????????????????? | | ???????????## """#?#" " #??????????????????? | | ???????????# """##### " ##?????????????????? | | ??????????## " #??# " ###???????????????? | | ??????????# " #??## " # #???????????????? | | ????###?### """"###### ### ##???????????????? | | ????# ### ## ## #?#####????????????????? | | ????# ## ## @#??????????????????????? | | ????# #### # #??????????????????????? | | ????# ###??##### # % ##### #???????????? | | ????#####????????##### % ""#???????????? | | ?????????????????????##% <#??????????? | | ??????????????????????### ""##??????????? | | ????????????????????????# ## "#???????????? | | ????????????????????????# ###?? "#???????????? | | ???????????????????????? R#????? """#???????????? | | ???????????????????????? #???????##????????????? | | ??????????????????????? ?????????????????????? | | ??????????????????????? #?????????????????????? | | ??????????????????????? ##?????????????????????? | | ?????????????????????? ???????????????????????? | | ?????????????????????? ???????????????????????? | | ?????????????????????? ???????????????????????? | | ?????????????????????# ???????????????????????? | | ?????????????????????? ???????????????????????? | | ???????????????????????? ???????????????????????? | | ?????????????????????????????????????????????????? | | ?????????????????????????????????????????????????? | | ?????????????????????????????????????????????????? | | ?????????????????????????????????????????????????? | | ?????????????????????????????????????????????????? | | ?????????????????????????????????????????????????? | +----------------------------------------------------+ Best States ------------- Heat Dissipation 35 Energy Generation 10 Energy Capacity 250 Matter Stores 300 Matter Capacity 300 Sight Range 16 Terrain Scan Density 10 ECM Strength 1 Evasion (%) 50 Item Schematics ----------------- None Robot Schematics ------------------ None Fabricated ------------ Nothing Repaired ---------- Wheel | 97% | -10/Materials Wheel | 12% | -10/Materials Studied --------- None Alien Tech Used ----------------- None Achievements -------------- None Challenges ------------ None Game ------ Seed WarpActuatorCalibrator Manual? 0 Play Time 00:16:18 Cumulative 20.8 hours Start 2026.04.13 @ 22:00:41 End 2026.04.13 @ 22:14:38 Sessions 1 Manual Loads 0 Difficulty Rogue Special Mode None Game No. 40 Rogue 37 Adventurer 3 Explorer 0 Win Type - Total 1 Types 1/0/0/0/0/0/0/0/0/0 Lore% 23 Gallery% 21 Achievement% 22 Wizard Run 0 Options --------- Layout 1 ASCII 0 Keyboard 0 Movement Numpad Keybinds 0 Fullscreen 2 Font 24/Proggy Map View 50x35 Zoom Use 0% Tactical HUD 1 Map Filters NONE Filters NONE Steam 1 RUN: 2fc38729-16b3-4c22-94ee-b7adb099aec3